[Event "Early-Titled-Tuesday-Blitz-January-30-2024"]
[Site "Chess.com"]
[Date "2024.01.30"]
[Round "5"]
[White "Slovineanu"]
[Black "Attacks_Hurricane"]
[Result "1-0"]
[WhiteElo "2442"]
[BlackElo "2236"]
[TimeControl "180+1"]
[EndTime "8:58:12 PST"]
[Termination "Slovineanu won by checkmate"]

1. d4 {[%clk 0:02:57.3]} 1... f5 {[%clk 0:02:54]} 2. g3 {[%clk 0:02:56.7]} 2...
Nf6 {[%clk 0:02:53.7]} 3. Bg2 {[%clk 0:02:56.7]} 3... e6 {[%clk 0:02:54]} 4. c4
{[%clk 0:02:51.8]} 4... Be7 {[%clk 0:02:53.9]} 5. Nh3 {[%clk 0:02:46.3]} 5...
O-O {[%clk 0:02:53.2]} 6. O-O {[%clk 0:02:46.3]} 6... d6 {[%clk 0:02:51.5]} 7.
Nc3 {[%clk 0:02:43.6]} 7... e5 {[%clk 0:02:33.2]} 8. d5 {[%clk 0:02:43.4]} 8...
h6 {[%clk 0:02:30.6]} 9. f3 {[%clk 0:02:43.3]} 9... a5 {[%clk 0:02:27.6]} 10.
Nf2 {[%clk 0:02:41.6]} 10... Na6 {[%clk 0:02:21.3]} 11. a3 {[%clk 0:02:32.9]}
11... Nc5 {[%clk 0:02:18.1]} 12. b3 {[%clk 0:02:30.1]} 12... Bd7 {[%clk
0:01:59.8]} 13. Rb1 {[%clk 0:02:28.7]} 13... Qe8 {[%clk 0:01:51.2]} 14. e4
{[%clk 0:02:20.7]} 14... Qg6 {[%clk 0:01:46]} 15. Be3 {[%clk 0:02:09.7]} 15...
b6 {[%clk 0:01:39.4]} 16. b4 {[%clk 0:02:00.6]} 16... axb4 {[%clk 0:01:33.7]}
17. axb4 {[%clk 0:02:00.5]} 17... Na4 {[%clk 0:01:24.8]} 18. Nxa4 {[%clk
0:02:00.4]} 18... Bxa4 {[%clk 0:01:17.7]} 19. exf5 {[%clk 0:01:50.8]} 19... Qxf5
{[%clk 0:01:12.1]} 20. Qd2 {[%clk 0:01:48.1]} 20... Qg6 {[%clk 0:00:52]} 21. Ra1
{[%clk 0:01:43.2]} 21... Bd7 {[%clk 0:00:52.5]} 22. Ra2 {[%clk 0:01:36]} 22...
Nh5 {[%clk 0:00:48.7]} 23. Rfa1 {[%clk 0:01:30.9]} 23... Rac8 {[%clk 0:00:47.4]}
24. Ra7 {[%clk 0:01:15.9]} 24... Nxg3 {[%clk 0:00:24.4]} 25. hxg3 {[%clk
0:01:15.7]} 25... Qxg3 {[%clk 0:00:25.3]} 26. Ne4 {[%clk 0:01:11.1]} 26... Qg6
{[%clk 0:00:22.6]} 27. Qf2 {[%clk 0:01:04]} 27... Bf5 {[%clk 0:00:20.2]} 28. Ng3
{[%clk 0:00:55.2]} 28... Bh4 {[%clk 0:00:19.7]} 29. Kh2 {[%clk 0:00:52.6]} 29...
Bg4 {[%clk 0:00:13.3]} 30. R1a3 {[%clk 0:00:32.4]} 30... Rf5 {[%clk 0:00:11.3]}
31. Nxf5 {[%clk 0:00:28.3]} 31... Bxf2 {[%clk 0:00:04.8]} 32. Ne7+ {[%clk
0:00:28.2]} 32... Kh7 {[%clk 0:00:05.4]} 33. Nxg6 {[%clk 0:00:28.8]} 33... Kxg6
{[%clk 0:00:06.3]} 34. Bxf2 {[%clk 0:00:28.7]} 34... Bf5 {[%clk 0:00:06.1]} 35.
Bh3 {[%clk 0:00:27.6]} 35... Bxh3 {[%clk 0:00:05.8]} 36. Kxh3 {[%clk 0:00:28]}
36... Kf5 {[%clk 0:00:06.7]} 37. Kg3 {[%clk 0:00:27.6]} 37... g5 {[%clk
0:00:07.2]} 38. Ra8 {[%clk 0:00:25.7]} 38... Rxa8 {[%clk 0:00:06.7]} 39. Rxa8
{[%clk 0:00:25.8]} 39... e4 {[%clk 0:00:07.6]} 40. Rf8+ {[%clk 0:00:25.2]} 40...
Kg6 {[%clk 0:00:07.7]} 41. fxe4 {[%clk 0:00:25.1]} 41... h5 {[%clk 0:00:08.6]}
42. c5 {[%clk 0:00:23.8]} 42... bxc5 {[%clk 0:00:08.6]} 43. bxc5 {[%clk
0:00:23.8]} 43... dxc5 {[%clk 0:00:09.5]} 44. Bxc5 {[%clk 0:00:24]} 44... h4+
{[%clk 0:00:10.4]} 45. Kg4 {[%clk 0:00:24.1]} 45... Kh6 {[%clk 0:00:11.3]} 46.
e5 {[%clk 0:00:24.1]} 46... Kg7 {[%clk 0:00:12.1]} 47. e6 {[%clk 0:00:24]} 47...
Kg6 {[%clk 0:00:13]} 48. e7 {[%clk 0:00:24.2]} 48... h3 {[%clk 0:00:13.9]} 49.
e8=Q+ {[%clk 0:00:24.2]} 49... Kh6 {[%clk 0:00:13.5]} 50. Qe6+ {[%clk
0:00:23.8]} 50... Kh7 {[%clk 0:00:11.4]} 51. Rf7+ {[%clk 0:00:24.1]} 51... Kg8
{[%clk 0:00:11.6]} 52. Qe8# {[%clk 0:00:24.7]} 1-0

[Event "Early-Titled-Tuesday-Blitz-January-30-2024"]
[Site "Chess.com"]
[Date "2024.01.30"]
[Round "5"]
[White "gahryman"]
[Black "vladislavkovalev"]
[Result "0-1"]
[WhiteElo "2656"]
[BlackElo "2862"]
[TimeControl "180+1"]
[EndTime "8:58:13 PST"]
[Termination "vladislavkovalev won by checkmate"]

1. e4 {[%clk 0:03:00.9]} 1... e5 {[%clk 0:02:59.9]} 2. Nf3 {[%clk 0:03:00.1]}
2... Nc6 {[%clk 0:03:00.4]} 3. Bc4 {[%clk 0:02:59.5]} 3... Bc5 {[%clk
0:02:59.9]} 4. d3 {[%clk 0:02:55.6]} 4... Nf6 {[%clk 0:03:00.4]} 5. O-O {[%clk
0:02:55.5]} 5... a6 {[%clk 0:02:59.1]} 6. c3 {[%clk 0:02:52.7]} 6... d6 {[%clk
0:02:58.8]} 7. a4 {[%clk 0:02:50.9]} 7... h6 {[%clk 0:02:58.8]} 8. Na3 {[%clk
0:02:49]} 8... O-O {[%clk 0:02:56.2]} 9. Nc2 {[%clk 0:02:48.7]} 9... Re8 {[%clk
0:02:54.7]} 10. Be3 {[%clk 0:02:47.5]} 10... Bxe3 {[%clk 0:02:45.8]} 11. Nxe3
{[%clk 0:02:48.4]} 11... Be6 {[%clk 0:02:44.4]} 12. Bxe6 {[%clk 0:02:47.8]}
12... Rxe6 {[%clk 0:02:45.3]} 13. b4 {[%clk 0:02:46.5]} 13... Qd7 {[%clk
0:02:39.1]} 14. b5 {[%clk 0:02:44.3]} 14... Ne7 {[%clk 0:02:38.3]} 15. c4 {[%clk
0:02:44.2]} 15... c6 {[%clk 0:02:26.1]} 16. Qb3 {[%clk 0:02:37.6]} 16... Rd8
{[%clk 0:02:19.3]} 17. bxa6 {[%clk 0:02:34.2]} 17... bxa6 {[%clk 0:02:19.4]} 18.
Rab1 {[%clk 0:02:34.7]} 18... d5 {[%clk 0:02:17.6]} 19. exd5 {[%clk 0:02:17.7]}
19... cxd5 {[%clk 0:02:18.5]} 20. Qb7 {[%clk 0:02:17.9]} 20... d4 {[%clk
0:02:04.3]} 21. Qxd7 {[%clk 0:02:15.1]} 21... Nxd7 {[%clk 0:02:05.1]} 22. Nd5
{[%clk 0:02:01]} 22... Nxd5 {[%clk 0:02:04.5]} 23. cxd5 {[%clk 0:02:01.9]} 23...
Rd6 {[%clk 0:02:05.2]} 24. Rfc1 {[%clk 0:01:30]} 24... Rxd5 {[%clk 0:02:05.3]}
25. g3 {[%clk 0:01:26.8]} 25... Nc5 {[%clk 0:02:01.8]} 26. a5 {[%clk 0:01:10.6]}
26... Nxd3 {[%clk 0:01:59.3]} 27. Rc7 {[%clk 0:01:10.8]} 27... e4 {[%clk
0:01:59.4]} 28. Nd2 {[%clk 0:00:47.3]} 28... e3 {[%clk 0:01:53.6]} 29. fxe3
{[%clk 0:00:47.5]} 29... dxe3 {[%clk 0:01:54.5]} 30. Nf3 {[%clk 0:00:48.2]}
30... Rf5 {[%clk 0:01:45.1]} 31. Kg2 {[%clk 0:00:44.3]} 31... g5 {[%clk
0:01:39.6]} 32. Re7 {[%clk 0:00:42.5]} 32... g4 {[%clk 0:01:29.5]} 33. Nh4
{[%clk 0:00:42.7]} 33... Rf2+ {[%clk 0:01:29.8]} 34. Kg1 {[%clk 0:00:43.4]}
34... e2 {[%clk 0:01:01.8]} 35. Ng2 {[%clk 0:00:43.4]} 35... Rd5 {[%clk
0:00:29.2]} 36. Ne3 {[%clk 0:00:23.8]} 36... Rb5 {[%clk 0:00:19.5]} 37. Rc1
{[%clk 0:00:20.5]} 37... h5 {[%clk 0:00:11.2]} 38. h3 {[%clk 0:00:06.9]} 38...
Rf3 {[%clk 0:00:09.3]} 39. Rc8+ {[%clk 0:00:04.6]} 39... Kg7 {[%clk 0:00:08.9]}
40. Ng2 {[%clk 0:00:05.5]} 40... Rb1+ {[%clk 0:00:07.9]} 41. Kh2 {[%clk
0:00:05.6]} 41... Nf2 {[%clk 0:00:07]} 42. hxg4 {[%clk 0:00:01.3]} 42... Rh1#
{[%clk 0:00:05.9]} 0-1

[Event "Early-Titled-Tuesday-Blitz-January-30-2024"]
[Site "Chess.com"]
[Date "2024.01.30"]
[Round "5"]
[White "ViIIagra"]
[Black "Firouzja2003"]
[Result "1-0"]
[WhiteElo "2959"]
[BlackElo "3135"]
[TimeControl "180+1"]
[EndTime "8:58:14 PST"]
[Termination "ViIIagra won on time"]

1. g3 {[%clk 0:02:59.5]} 1... e5 {[%clk 0:02:59.5]} 2. Bg2 {[%clk 0:02:59.2]}
2... d5 {[%clk 0:02:59.5]} 3. d3 {[%clk 0:02:56.4]} 3... Nc6 {[%clk 0:02:59.3]}
4. Nf3 {[%clk 0:02:56.4]} 4... f6 {[%clk 0:02:55.1]} 5. O-O {[%clk 0:02:54.4]}
5... Be6 {[%clk 0:02:55.3]} 6. c3 {[%clk 0:02:50.1]} 6... Qd7 {[%clk 0:02:46.7]}
7. b4 {[%clk 0:02:49.9]} 7... O-O-O {[%clk 0:02:46.8]} 8. Nbd2 {[%clk
0:02:09.1]} 8... h5 {[%clk 0:02:36.5]} 9. b5 {[%clk 0:02:09.1]} 9... Nb8 {[%clk
0:02:13.2]} 10. c4 {[%clk 0:02:09.3]} 10... dxc4 {[%clk 0:02:07.8]} 11. Qa4
{[%clk 0:01:47.2]} 11... cxd3 {[%clk 0:02:05.4]} 12. Qxa7 {[%clk 0:01:42.4]}
12... dxe2 {[%clk 0:01:50.9]} 13. Re1 {[%clk 0:01:37.7]} 13... Bd5 {[%clk
0:01:25.1]} 14. Rxe2 {[%clk 0:00:45.7]} 14... Qxb5 {[%clk 0:01:21]} 15. Bh3+
{[%clk 0:00:45.2]} 15... Rd7 {[%clk 0:01:17.1]} 16. Nd4 {[%clk 0:00:17.7]} 16...
Qa6 {[%clk 0:00:58.3]} 17. Bxd7+ {[%clk 0:00:17.1]} 17... Nxd7 {[%clk
0:00:49.5]} 18. Qxa6 {[%clk 0:00:17.3]} 18... bxa6 {[%clk 0:00:50.4]} 19. N4b3
{[%clk 0:00:18]} 19... h4 {[%clk 0:00:48.3]} 20. Bb2 {[%clk 0:00:18]} 20... hxg3
{[%clk 0:00:48.3]} 21. fxg3 {[%clk 0:00:18.9]} 21... Nh6 {[%clk 0:00:44.4]} 22.
Rc1 {[%clk 0:00:18.8]} 22... Nf5 {[%clk 0:00:40]} 23. Ne4 {[%clk 0:00:17.9]}
23... Be7 {[%clk 0:00:36.8]} 24. Nc3 {[%clk 0:00:06.2]} 24... Bf3 {[%clk
0:00:24]} 25. Rf2 {[%clk 0:00:06]} 25... e4 {[%clk 0:00:24.4]} 26. Na4 {[%clk
0:00:05.1]} 26... Nxg3 {[%clk 0:00:21]} 27. Re1 {[%clk 0:00:02.1]} 27... Nf5
{[%clk 0:00:14.9]} 28. Nd4 {[%clk 0:00:02.8]} 28... Nxd4 {[%clk 0:00:14.9]} 29.
Bxd4 {[%clk 0:00:03.7]} 29... Bd6 {[%clk 0:00:14.3]} 30. Nc3 {[%clk 0:00:03.9]}
30... f5 {[%clk 0:00:15]} 31. Nd5 {[%clk 0:00:03.8]} 31... Ne5 {[%clk
0:00:14.9]} 32. Bxe5 {[%clk 0:00:03.4]} 32... Bxe5 {[%clk 0:00:15.8]} 33. Ne7+
{[%clk 0:00:04.2]} 33... Kb7 {[%clk 0:00:13.4]} 34. Ng6 {[%clk 0:00:05.1]} 34...
Re8 {[%clk 0:00:02.2]} 35. Nxe5 {[%clk 0:00:05.6]} 35... Rxe5 {[%clk 0:00:02.6]}
36. Rxf3 {[%clk 0:00:06.3]} 36... g5 {[%clk 0:00:02.6]} 37. Rb3+ {[%clk
0:00:06.5]} 37... Kc6 {[%clk 0:00:02.7]} 38. Kf2 {[%clk 0:00:07.1]} 38... f4
{[%clk 0:00:02.6]} 39. Rc1+ {[%clk 0:00:07.7]} 39... Kd6 {[%clk 0:00:02.9]} 40.
Rb7 {[%clk 0:00:08]} 40... c5 {[%clk 0:00:02]} 41. Rb6+ {[%clk 0:00:08.2]} 41...
Kd5 {[%clk 0:00:02.7]} 42. h3 {[%clk 0:00:05.7]} 42... Kd4 {[%clk 0:00:02]} 43.
Rd6+ {[%clk 0:00:06.1]} 43... Rd5 {[%clk 0:00:02.4]} 44. Rd1+ {[%clk 0:00:06.8]}
1-0

[Event "Early-Titled-Tuesday-Blitz-January-30-2024"]
[Site "Chess.com"]
[Date "2024.01.30"]
[Round "5"]
[White "Bushonica"]
[Black "giovannibrandao7"]
[Result "1-0"]
[WhiteElo "1826"]
[BlackElo "2132"]
[TimeControl "180+1"]
[EndTime "8:58:15 PST"]
[Termination "Bushonica won on time"]

1. e4 {[%clk 0:02:47.6]} 1... c5 {[%clk 0:02:59.7]} 2. d4 {[%clk 0:02:43.8]}
2... cxd4 {[%clk 0:02:59.4]} 3. Qxd4 {[%clk 0:02:43.8]} 3... Nc6 {[%clk
0:02:59.5]} 4. Qe3 {[%clk 0:02:43.7]} 4... Nf6 {[%clk 0:02:59.3]} 5. Nc3 {[%clk
0:02:43.4]} 5... d6 {[%clk 0:02:58.7]} 6. Bd3 {[%clk 0:02:43.1]} 6... g6 {[%clk
0:02:57.4]} 7. h3 {[%clk 0:02:42.3]} 7... Bg7 {[%clk 0:02:53.6]} 8. Nf3 {[%clk
0:02:35.1]} 8... O-O {[%clk 0:02:52.7]} 9. Bd2 {[%clk 0:02:33.6]} 9... a6 {[%clk
0:02:50.3]} 10. a4 {[%clk 0:02:31.9]} 10... Nb4 {[%clk 0:02:31.1]} 11. O-O
{[%clk 0:02:27.4]} 11... Be6 {[%clk 0:02:14.6]} 12. Ne2 {[%clk 0:02:16.3]} 12...
Nxd3 {[%clk 0:02:04.3]} 13. cxd3 {[%clk 0:02:12.1]} 13... Rc8 {[%clk 0:02:03.1]}
14. Bc3 {[%clk 0:02:11.7]} 14... Bd7 {[%clk 0:01:24.7]} 15. d4 {[%clk 0:02:06]}
15... Bc6 {[%clk 0:01:20.6]} 16. Ng3 {[%clk 0:02:03.1]} 16... d5 {[%clk
0:01:01.1]} 17. e5 {[%clk 0:02:00.7]} 17... Ne4 {[%clk 0:01:00.7]} 18. Nxe4
{[%clk 0:01:58.5]} 18... dxe4 {[%clk 0:01:01.6]} 19. Nh2 {[%clk 0:01:57]} 19...
Qd5 {[%clk 0:00:58.5]} 20. f3 {[%clk 0:01:53.4]} 20... exf3 {[%clk 0:00:55.5]}
21. Nxf3 {[%clk 0:01:53]} 21... e6 {[%clk 0:00:44.2]} 22. Rf2 {[%clk 0:01:50.2]}
22... b5 {[%clk 0:00:42.5]} 23. axb5 {[%clk 0:01:48.6]} 23... axb5 {[%clk
0:00:43.4]} 24. Bb4 {[%clk 0:01:47.9]} 24... Rfd8 {[%clk 0:00:40.7]} 25. Bc5
{[%clk 0:01:47.7]} 25... Rd7 {[%clk 0:00:22]} 26. b4 {[%clk 0:01:46.4]} 26... h6
{[%clk 0:00:15.2]} 27. Rfa2 {[%clk 0:01:32.7]} 27... Kh7 {[%clk 0:00:14.3]} 28.
Ra7 {[%clk 0:01:31.7]} 28... Rcd8 {[%clk 0:00:06.1]} 29. Bb6 {[%clk 0:01:29.6]}
29... Rxa7 {[%clk 0:00:05.9]} 30. Rxa7 {[%clk 0:01:27.2]} 30... Rd7 {[%clk
0:00:06.3]} 31. Rxd7 {[%clk 0:01:24.8]} 31... Bxd7 {[%clk 0:00:07.2]} 32. Qe2
{[%clk 0:01:21.6]} 32... Bf8 {[%clk 0:00:05.9]} 33. Bc5 {[%clk 0:01:20.2]} 33...
Bxc5 {[%clk 0:00:06]} 34. dxc5 {[%clk 0:01:18.8]} 34... Bc6 {[%clk 0:00:06.4]}
35. Kf2 {[%clk 0:01:18.2]} 35... Kg7 {[%clk 0:00:06.3]} 36. Qd2 {[%clk
0:01:15.1]} 36... Qe4 {[%clk 0:00:05]} 37. Qe3 {[%clk 0:01:00.9]} 37... Qc2+
{[%clk 0:00:04.1]} 38. Kg3 {[%clk 0:01:00.7]} 38... Bd5 {[%clk 0:00:03.2]} 39.
Qf2 {[%clk 0:00:57.8]} 39... Qe4 {[%clk 0:00:02.5]} 40. Qe1 {[%clk 0:00:52.4]}
40... Qc4 {[%clk 0:00:01.4]} 41. Qd2 {[%clk 0:00:45]} 41... g5 {[%clk
0:00:01.6]} 42. Nh2 {[%clk 0:00:42.3]} 42... Qe4 {[%clk 0:00:01.9]} 43. Ng4
{[%clk 0:00:41.7]} 43... h5 {[%clk 0:00:01.8]} 44. Qxg5+ {[%clk 0:00:36.8]}
44... Kf8 {[%clk 0:00:01.4]} 45. Qd8+ {[%clk 0:00:36.1]} 45... Kg7 {[%clk
0:00:01.1]} 46. Qf6+ {[%clk 0:00:36.1]} 46... Kf8 {[%clk 0:00:01.6]} 47. Qh8+
{[%clk 0:00:33.8]} 47... Ke7 {[%clk 0:00:01.8]} 48. Qf6+ {[%clk 0:00:34.1]}
48... Ke8 {[%clk 0:00:02.2]} 49. Qh8+ {[%clk 0:00:32.6]} 49... Ke7 {[%clk
0:00:02.2]} 50. Qf6+ {[%clk 0:00:31.4]} 50... Ke8 {[%clk 0:00:02.8]} 51. Qh8+
{[%clk 0:00:29.6]} 51... Kd7 {[%clk 0:00:03.1]} 52. Nf6+ {[%clk 0:00:29.3]}
52... Kc7 {[%clk 0:00:03.7]} 53. Nxe4 {[%clk 0:00:29.4]} 1-0

[Event "Early-Titled-Tuesday-Blitz-January-30-2024"]
[Site "Chess.com"]
[Date "2024.01.30"]
[Round "5"]
[White "Durarbayli"]
[Black "Jospem"]
[Result "0-1"]
[WhiteElo "2912"]
[BlackElo "3060"]
[TimeControl "180+1"]
[EndTime "8:58:16 PST"]
[Termination "Jospem won on time"]

1. e4 {[%clk 0:03:00.9]} 1... c5 {[%clk 0:03:00.6]} 2. Nf3 {[%clk 0:03:00.3]}
2... d6 {[%clk 0:03:01.3]} 3. d4 {[%clk 0:03:00.2]} 3... cxd4 {[%clk 0:03:02.2]}
4. Nxd4 {[%clk 0:03:00.6]} 4... a6 {[%clk 0:03:02.9]} 5. Nc3 {[%clk 0:03:00.8]}
5... e6 {[%clk 0:03:03.2]} 6. g4 {[%clk 0:02:59]} 6... b5 {[%clk 0:03:03.3]} 7.
a3 {[%clk 0:02:58.2]} 7... Bb7 {[%clk 0:03:03.5]} 8. Bg2 {[%clk 0:02:57.1]} 8...
Ne7 {[%clk 0:03:04]} 9. O-O {[%clk 0:02:51.6]} 9... Nec6 {[%clk 0:03:03.7]} 10.
Nde2 {[%clk 0:02:44.6]} 10... Be7 {[%clk 0:03:03]} 11. Kh1 {[%clk 0:02:41.8]}
11... O-O {[%clk 0:03:02.7]} 12. f4 {[%clk 0:02:42.2]} 12... Nd7 {[%clk
0:02:58.1]} 13. b3 {[%clk 0:02:41.9]} 13... Rc8 {[%clk 0:02:42.4]} 14. Bb2
{[%clk 0:02:39.2]} 14... Re8 {[%clk 0:02:39.8]} 15. Ng3 {[%clk 0:02:37.4]} 15...
Bf8 {[%clk 0:02:39.6]} 16. g5 {[%clk 0:02:24.4]} 16... Nb6 {[%clk 0:02:04.7]}
17. Qg4 {[%clk 0:02:12.2]} 17... d5 {[%clk 0:01:52.8]} 18. Rad1 {[%clk
0:01:58.9]} 18... b4 {[%clk 0:01:37.1]} 19. exd5 {[%clk 0:01:55.1]} 19... exd5
{[%clk 0:01:27.7]} 20. Nxd5 {[%clk 0:01:54.5]} 20... Nxd5 {[%clk 0:01:28.1]} 21.
Rxd5 {[%clk 0:01:53.4]} 21... Qb6 {[%clk 0:01:21.7]} 22. a4 {[%clk 0:01:39.7]}
22... Ne7 {[%clk 0:01:17.3]} 23. Rd2 {[%clk 0:01:35.9]} 23... Bxg2+ {[%clk
0:01:17.6]} 24. Rxg2 {[%clk 0:01:36.3]} 24... Nd5 {[%clk 0:01:17.5]} 25. Nf5
{[%clk 0:01:31.7]} 25... g6 {[%clk 0:01:00.5]} 26. Qf3 {[%clk 0:01:16.4]} 26...
Rcd8 {[%clk 0:00:36.5]} 27. Bd4 {[%clk 0:01:10]} 27... Qe6 {[%clk 0:00:34.7]}
28. Ng3 {[%clk 0:00:57.8]} 28... Ne7 {[%clk 0:00:20.7]} 29. Bf6 {[%clk
0:00:52.8]} 29... Bg7 {[%clk 0:00:21.1]} 30. Re2 {[%clk 0:00:51]} 30... Qd7
{[%clk 0:00:17.7]} 31. Rfe1 {[%clk 0:00:28.7]} 31... Bxf6 {[%clk 0:00:17.1]} 32.
gxf6 {[%clk 0:00:29.6]} 32... Nc6 {[%clk 0:00:17.8]} 33. Rxe8+ {[%clk
0:00:08.3]} 33... Rxe8 {[%clk 0:00:18.7]} 34. Rxe8+ {[%clk 0:00:08.5]} 34...
Qxe8 {[%clk 0:00:19.6]} 35. Kg2 {[%clk 0:00:06.2]} 35... Qd7 {[%clk 0:00:15.4]}
36. Qe4 {[%clk 0:00:05]} 36... h6 {[%clk 0:00:09.5]} 37. f5 {[%clk 0:00:04.8]}
37... g5 {[%clk 0:00:08.4]} 38. h4 {[%clk 0:00:05.5]} 38... Nd4 {[%clk
0:00:02.9]} 39. hxg5 {[%clk 0:00:04.6]} 39... hxg5 {[%clk 0:00:03.8]} 40. Qg4
{[%clk 0:00:04.2]} 40... Qc6+ {[%clk 0:00:04.4]} 41. Kh3 {[%clk 0:00:02.5]}
41... Qxf6 {[%clk 0:00:04.3]} 42. Ne4 {[%clk 0:00:02.3]} 42... Qh6+ {[%clk
0:00:03.9]} 43. Kg2 {[%clk 0:00:01.8]} 43... Nxc2 {[%clk 0:00:03.5]} 44. Nxg5
{[%clk 0:00:01.6]} 44... Ne3+ {[%clk 0:00:03.5]} 45. Kg3 {[%clk 0:00:01.5]}
45... Nxg4 {[%clk 0:00:04.1]} 46. Kxg4 {[%clk 0:00:02.4]} 46... Qc6 {[%clk
0:00:04.3]} 0-1

[Event "Early-Titled-Tuesday-Blitz-January-30-2024"]
[Site "Chess.com"]
[Date "2024.01.30"]
[Round "5"]
[White "Adar_07"]
[Black "artin10862"]
[Result "0-1"]
[WhiteElo "2645"]
[BlackElo "2861"]
[TimeControl "180+1"]
[EndTime "8:58:16 PST"]
[Termination "artin10862 won by resignation"]

1. e4 {[%clk 0:03:00.9]} 1... e5 {[%clk 0:02:58]} 2. Nf3 {[%clk 0:03:01.2]} 2...
Nc6 {[%clk 0:02:58.7]} 3. Bb5 {[%clk 0:03:01.8]} 3... a6 {[%clk 0:02:58]} 4. Ba4
{[%clk 0:03:01]} 4... Bc5 {[%clk 0:02:58.3]} 5. O-O {[%clk 0:02:59]} 5... Nge7
{[%clk 0:02:58.4]} 6. c3 {[%clk 0:02:59.2]} 6... Ng6 {[%clk 0:02:53]} 7. d4
{[%clk 0:02:57.2]} 7... Ba7 {[%clk 0:02:53.3]} 8. Bg5 {[%clk 0:02:47.7]} 8... f6
{[%clk 0:02:51.4]} 9. Be3 {[%clk 0:02:45.1]} 9... O-O {[%clk 0:02:48.4]} 10.
Nbd2 {[%clk 0:02:40.7]} 10... d6 {[%clk 0:02:48.4]} 11. h3 {[%clk 0:02:36.8]}
11... Kh8 {[%clk 0:02:48]} 12. Re1 {[%clk 0:02:36.6]} 12... Bd7 {[%clk
0:02:46.7]} 13. Bb3 {[%clk 0:02:30.8]} 13... Qe8 {[%clk 0:02:32.6]} 14. Nf1
{[%clk 0:02:28.4]} 14... Nce7 {[%clk 0:02:27.8]} 15. Ng3 {[%clk 0:02:27.2]}
15... Rd8 {[%clk 0:01:54.9]} 16. dxe5 {[%clk 0:01:45.8]} 16... Bxe3 {[%clk
0:01:52.8]} 17. exf6 {[%clk 0:01:46]} 17... Bxf2+ {[%clk 0:01:47.4]} 18. Kxf2
{[%clk 0:01:46.9]} 18... Rxf6 {[%clk 0:01:47.2]} 19. Kg1 {[%clk 0:01:44.2]}
19... Nc6 {[%clk 0:01:45.1]} 20. Rf1 {[%clk 0:01:28.7]} 20... Nf4 {[%clk
0:01:42.1]} 21. Ng5 {[%clk 0:01:15.2]} 21... Qg6 {[%clk 0:01:34]} 22. h4 {[%clk
0:01:05]} 22... h6 {[%clk 0:01:33.7]} 23. Bf7 {[%clk 0:00:43.5]} 23... Rxf7
{[%clk 0:01:25]} 24. Nxf7+ {[%clk 0:00:44.4]} 24... Qxf7 {[%clk 0:01:25.6]} 25.
Qd2 {[%clk 0:00:43.4]} 25... g5 {[%clk 0:00:46.6]} 26. hxg5 {[%clk 0:00:42.1]}
26... hxg5 {[%clk 0:00:47.5]} 27. Ne2 {[%clk 0:00:25.4]} 27... Nxe2+ {[%clk
0:00:44.9]} 28. Qxe2 {[%clk 0:00:26.3]} 28... Qg6 {[%clk 0:00:45.4]} 29. Rf2
{[%clk 0:00:25.1]} 29... Ne5 {[%clk 0:00:36.5]} 30. Raf1 {[%clk 0:00:25.4]}
30... Kg7 {[%clk 0:00:35.1]} 31. Qe3 {[%clk 0:00:18.5]} 31... Rh8 {[%clk
0:00:32.4]} 32. Qd4 {[%clk 0:00:08]} 32... Be6 {[%clk 0:00:25.6]} 33. Rf6 {[%clk
0:00:07.5]} 33... Qxf6 {[%clk 0:00:25.6]} 34. Rxf6 {[%clk 0:00:08.4]} 34... Kxf6
{[%clk 0:00:26.5]} 35. Qb4 {[%clk 0:00:08.3]} 35... b6 {[%clk 0:00:25]} 36. Qa4
{[%clk 0:00:07.9]} 36... a5 {[%clk 0:00:24]} 37. Qd4 {[%clk 0:00:08.3]} 37...
Ke7 {[%clk 0:00:20.7]} 38. Qe3 {[%clk 0:00:08.1]} 38... Rg8 {[%clk 0:00:20.8]}
39. b3 {[%clk 0:00:07.3]} 39... Kd7 {[%clk 0:00:20]} 40. c4 {[%clk 0:00:07.9]}
40... Rf8 {[%clk 0:00:17.1]} 41. Qxg5 {[%clk 0:00:07.6]} 41... Nf3+ {[%clk
0:00:17.2]} 42. gxf3 {[%clk 0:00:08.5]} 42... Rg8 {[%clk 0:00:17.7]} 43. Qxg8
{[%clk 0:00:08.4]} 43... Bxg8 {[%clk 0:00:18.6]} 44. Kf2 {[%clk 0:00:09.1]}
44... Ke6 {[%clk 0:00:18.7]} 45. Ke3 {[%clk 0:00:09.8]} 45... Kd7 {[%clk
0:00:17.4]} 46. Kd4 {[%clk 0:00:09.8]} 46... Kc6 {[%clk 0:00:16.7]} 47. a3
{[%clk 0:00:09.2]} 47... b5 {[%clk 0:00:15.9]} 48. Kc3 {[%clk 0:00:05.2]} 48...
bxc4 {[%clk 0:00:15.5]} 49. bxc4 {[%clk 0:00:05.6]} 49... Kc5 {[%clk 0:00:16.4]}
0-1